bitfinex-derivatives/quotes_SOLF0:USTF0_20260208
["timestamp","ask_amount","ask_price","bid_price","bid_amount"]
[1770568873042,10.3802,86.771,86.684,24.78806709]
[1770568873242,455.55470537,86.805,86.684,24.78806709]
[1770568873841,455.55470537,86.805,86.694,24.79458263]
[1770568874238,10.47647758,86.797,86.694,24.79458263]
[1770568874440,10.3823,86.754,86.694,24.79458263]
[1770568875043,466.03118295,86.805,86.694,24.79458263]
[1770568875244,455.55470537,86.805,86.694,24.79458263]
[1770568875844,10.3788,86.783,86.71,24.72651889]
[1770568877641,10.38,86.773,86.71,24.72651889]
[1770568878752,10.3786,86.785,86.71,24.72651889]
[1770568880242,10.3772,86.797,86.71,24.72651889]
[1770568880540,455.55470537,86.805,86.71,24.72651889]
[1770568880748,8.53193703,86.804,86.71,24.72651889]
[1770568880939,8.53193703,86.803,86.71,24.72651889]
[1770568881143,8.53193703,86.802,86.71,24.72651889]
[1770568881348,8.53193703,86.801,86.71,24.72651889]
[1770568881655,8.53193703,86.8,86.71,24.72651889]
[1770568881846,10.3779,86.79,86.714,24.5946977]
[1770568882948,10.3765,86.802,86.716,24.54699247]
[1770568883147,8.53726656,86.801,86.716,24.54699247]
[1770568883352,8.53726656,86.8,86.716,24.54699247]
[1770568883548,8.53726656,86.799,86.716,24.54699247]
[1770568883752,8.53726656,86.798,86.716,24.54699247]
[1770568884059,8.53726656,86.797,86.716,24.54699247]
[1770568884245,10.3765,86.802,86.723,24.73596612]
[1770568884246,8.53726656,86.796,86.723,24.73596612]
[1770568884552,10.3779,86.79,86.723,24.73596612]
[1770568884753,8.53726656,86.789,86.723,24.73596612]
[1770568885050,8.53726656,86.788,86.723,24.73596612]
[1770568885251,8.53726656,86.787,86.723,24.73596612]
[1770568885453,8.53726656,86.786,86.723,24.73596612]
[1770568885645,10.3764,86.803,86.723,24.73596612]
[1770568885845,8.53893572,86.802,86.723,24.73596612]
[1770568886048,8.53893572,86.801,86.723,24.73596612]
[1770568886247,8.53893572,86.8,86.723,24.73596612]
[1770568886445,8.53893572,86.799,86.723,24.73596612]
[1770568886652,8.53893572,86.798,86.723,24.73596612]
[1770568886851,8.53893572,86.797,86.728,24.6768254]
[1770568887045,8.53893572,86.796,86.728,24.6768254]
[1770568887246,8.53893572,86.795,86.728,24.6768254]
[1770568887441,8.53893572,86.794,86.728,24.6768254]
[1770568887744,10.3764,86.803,86.728,24.6768254]
[1770568887745,8.53893572,86.793,86.728,24.6768254]
[1770568887945,8.53893572,86.792,86.731,24.6812593]
[1770568888146,8.53893572,86.791,86.731,24.6812593]
[1770568888353,8.53893572,86.79,86.731,24.6812593]
[1770568888653,8.53893572,86.789,86.731,24.6812593]
[1770568888850,8.53893572,86.788,86.731,24.6812593]
[1770568889050,8.53893572,86.788,86.674,296.0]
[1770568889051,10.3764,86.803,86.733,24.66308601]
[1770568889353,8.53979095,86.802,86.733,24.66308601]
[1770568889654,10.3767,86.8,86.733,24.66308601]
[1770568889852,8.53979095,86.799,86.733,24.66308601]
[1770568890153,8.53979095,86.798,86.733,24.66308601]
[1770568890347,8.53979095,86.797,86.733,24.66308601]
[1770568890547,455.55470537,86.805,86.736,24.6251362]
[1770568890748,10.3754,86.811,86.736,24.6251362]
[1770568890749,8.53688943,86.804,86.736,24.6251362]
[1770568890948,8.53688943,86.803,86.736,24.6251362]
[1770568891250,10.3754,86.811,86.736,24.6251362]
[1770568891451,8.53606938,86.81,86.736,24.6251362]
[1770568891753,8.53606938,86.809,86.744,10.3834]
[1770568891953,8.53606938,86.808,86.745,24.62904325]
[1770568892150,8.53524855,86.807,86.745,24.62904325]
[1770568892353,8.53524855,86.806,86.745,24.62904325]
[1770568892549,8.53524855,86.805,86.745,24.62904325]
[1770568892751,8.53524855,86.804,86.745,24.62904325]
[1770568892954,8.53652521,86.803,86.745,24.62904325]
[1770568893149,8.53489548,86.802,86.683,24.63160604]
[1770568893345,8.53489548,86.801,86.683,24.63160604]
[1770568893548,8.53489548,86.8,86.683,24.63160604]
[1770568893752,8.53489548,86.799,86.683,24.63160604]
[1770568893956,8.53489548,86.798,86.683,24.63160604]
[1770568894156,10.3797,86.776,86.708,24.66717232]
[1770568894352,14.04364936,86.813,86.708,24.66717232]
[1770568894353,8.53280139,86.775,86.708,24.66717232]
[1770568894653,8.53252521,86.774,86.708,24.66717232]
[1770568894857,28.06333502,86.837,86.638,20.7921]
[1770568894858,10.3787,86.784,86.711,24.66717232]
[1770568895054,8.53325149,86.783,86.711,24.66717232]
[1770568895358,8.53325149,86.782,86.711,24.66717232]
[1770568895558,8.53325149,86.781,86.711,24.66717232]
[1770568895750,8.53325149,86.78,86.711,24.66717232]
[1770568896059,8.53325149,86.779,86.711,24.66717232]
[1770568896256,8.53325149,86.778,86.711,24.66717232]
[1770568896445,8.53325149,86.777,86.711,24.66717232]
[1770568896649,8.53325149,86.776,86.711,24.66717232]
[1770568896856,10.381,86.765,86.711,24.66717232]
[1770568897052,8.53325149,86.764,86.711,24.66717232]
[1770568897259,8.53325149,86.763,86.711,24.66717232]
[1770568897460,8.53325149,86.762,86.711,24.66717232]
[1770568897655,8.53325149,86.761,86.711,24.66717232]
[1770568897953,8.53325149,86.76,86.676,24.36887712]
[1770568898157,8.53325149,86.759,86.676,24.36887712]
[1770568898352,8.53325149,86.758,86.676,24.36887712]
[1770568898557,8.53325149,86.757,86.676,24.36887712]
[1770568898760,8.53325149,86.756,86.676,24.36887712]
[1770568898948,8.53325149,86.755,86.676,24.36887712]
[1770568899152,8.53325149,86.754,86.676,24.36887712]
[1770568899351,8.53325149,86.753,86.676,24.36887712]
[1770568899546,8.53325149,86.752,86.676,24.36887712]
[1770568899759,10.3828,86.749,86.676,24.36887712]
[1770568899957,8.53325149,86.748,86.676,24.36887712]
[1770568900259,8.53325149,86.747,86.676,24.36887712]
[1770568900554,8.53325149,86.746,86.676,24.36887712]
[1770568900760,0.07747017,86.759,86.69,24.5358234]
[1770568900960,0.07747017,86.757,86.69,24.5358234]
[1770568901160,0.07747017,86.755,86.69,24.5358234]
[1770568901356,10.3844,86.736,86.69,24.5358234]
[1770568901558,0.25464588,86.734,86.661,24.53883657]
[1770568901858,0.25464588,86.732,86.661,24.53883657]
[1770568902060,0.25464588,86.73,86.661,24.53883657]
[1770568902250,10.88767273,86.727,86.661,24.53883657]
[1770568902454,8.53387957,86.726,86.661,24.53883657]
[1770568902655,8.53387957,86.725,86.661,24.53883657]
[1770568902857,8.53387957,86.724,86.661,24.53883657]
[1770568903051,0.68332092,86.744,86.661,24.53883657]
[1770568903256,10.3838,86.741,86.661,24.53883657]
[1770568903462,10.3838,86.741,86.665,24.41755592]
[1770568903660,0.8574083,86.74,86.665,24.41755592]
[1770568904065,10.3846,86.735,86.668,24.41755592]
[1770568904266,0.76720561,86.734,86.668,24.41755592]
[1770568904462,0.94365143,86.732,86.668,24.41755592]
[1770568904770,0.94365143,86.723,86.668,24.41755592]
[1770568905762,10.3864,86.72,86.668,24.41755592]
[1770568906454,1.28835372,86.714,86.651,24.55156192]
[1770568906654,1.28835372,86.714,86.598,11.49]
[1770568906655,1.28835372,86.712,86.634,24.55156192]
[1770568906861,1.28835372,86.71,86.634,24.55156192]
[1770568907064,1.28835372,86.708,86.634,24.55156192]
[1770568907264,1.28284377,86.706,86.634,24.55156192]
[1770568907466,10.3913,86.679,86.634,24.55156192]
[1770568907859,1.28284377,86.686,86.634,24.55156192]
[1770568908363,1.57120105,86.68,86.613,24.49464997]
[1770568909963,10.3916,86.676,86.615,24.49714687]
[1770568910566,2.17042333,86.675,86.615,24.49714687]
[1770568911658,10.3916,86.676,86.615,24.49714687]
[1770568912867,2.32669298,86.691,86.615,24.49714687]
[1770568913068,2.53648902,86.715,86.615,24.49714687]
[1770568914270,8.64917649,86.739,86.616,24.35722888]
[1770568914271,2.81903911,86.692,86.616,24.35722888]
[1770568914969,2.97484712,86.687,86.616,24.35722888]
[1770568915170,2.97484712,86.687,86.604,24.35909825]
[1770568916776,10.3926,86.668,86.604,24.35909825]
[1770568917274,2.96867423,86.667,86.604,24.35909825]
[1770568917974,3.11982885,86.689,86.604,24.35909825]
[1770568918176,3.11982885,86.707,86.604,24.35909825]
[1770568918668,3.16033825,86.687,86.616,24.56763045]
[1770568919063,3.16033825,86.704,86.616,24.56763045]
[1770568919271,3.15560904,86.69,86.618,24.56999505]
[1770568919469,3.15560904,86.69,86.601,24.56999505]
[1770568919669,3.15560904,86.69,86.604,24.56999505]
[1770568920170,3.30338751,86.707,86.604,24.56999505]
[1770568921472,3.8994331,86.688,86.625,24.41684585]
[1770568921773,3.8994331,86.688,86.608,24.41684585]
[1770568922677,10.3929,86.665,86.608,24.41684585]
[1770568923269,4.08655592,86.664,86.608,24.41684585]
[1770568923469,4.22703604,86.659,86.585,24.39434871]
[1770568924479,10.3941,86.655,86.585,24.39434871]
[1770568924979,4.22703604,86.659,86.546,2.00899429]
[1770568924980,4.22703604,86.659,86.603,24.53851617]
[1770568926173,5.08275083,86.679,86.603,24.53851617]
[1770568926374,10.3929,86.665,86.603,24.53851617]
[1770568926576,5.2178305,86.665,86.603,0.55721108]
[1770568927177,15.6107305,86.665,86.603,0.55721108]
[1770568927385,5.2159779,86.695,86.603,24.66251595]
[1770568927983,10.3915,86.677,86.617,24.10530487]
[1770568928578,5.2159779,86.695,86.617,24.10530487]
[1770568929086,10.3895,86.694,86.626,23.98130509]
[1770568929682,10.3904,86.686,86.628,34.37860509]
[1770568930084,10.3924,86.669,86.628,23.98130509]
[1770568930273,10.3924,86.669,86.604,23.98130509]
[1770568930485,6.29068369,86.685,86.604,23.98130509]
[1770568930678,10.391,86.681,86.618,23.98130509]
[1770568930878,6.29262081,86.703,86.618,23.98130509]
[1770568931586,6.29262081,86.703,86.603,0.55721108]
[1770568931587,10.3896,86.693,86.633,23.98130509]
[1770568932683,6.43030387,86.685,86.615,23.98130509]
[1770568933287,10.3922,86.671,86.615,23.98130509]
[1770568936983,10.3909,86.682,86.618,26.37295019]
[1770568937384,7.35770057,86.701,86.618,26.37295019]
[1770568937677,16.09602005,86.7,86.618,26.37295019]
[1770568937887,8.62135413,86.699,86.618,26.37295019]
[1770568938082,10.3897,86.692,86.62,26.37295019]
[1770568938280,7.47466592,86.7,86.62,26.37295019]
[1770568938782,7.41763335,86.721,86.64,26.37295019]
[1770568938980,8.63197733,86.72,86.64,26.37295019]
[1770568939178,7.41702743,86.718,86.64,26.37295019]
[1770568939379,7.41702743,86.718,86.603,0.55721108]
[1770568939380,10.3872,86.713,86.642,26.37295019]
[1770568939586,8.63197733,86.712,86.642,26.37295019]
[1770568939787,8.63197733,86.711,86.642,26.37295019]
[1770568939992,8.63197733,86.71,86.642,26.37295019]
[1770568940187,8.63197733,86.709,86.642,26.37295019]
[1770568940492,8.63197733,86.708,86.642,26.37295019]
[1770568940687,8.63197733,86.707,86.644,10.3954]
[1770568940887,8.63197733,86.706,86.645,26.37295019]
[1770568941084,8.63197733,86.705,86.645,26.37295019]
[1770568941284,8.63197733,86.704,86.645,26.37295019]
[1770568941592,8.63197733,86.703,86.645,26.37295019]
[1770568941792,10.3871,86.714,86.645,26.37295019]
[1770568941994,8.65135782,86.713,86.645,26.37295019]
[1770568942192,8.65135782,86.712,86.645,26.37295019]
[1770568942391,8.65135782,86.711,86.647,26.37295019]
[1770568942594,8.65135782,86.71,86.647,26.37295019]
[1770568942888,8.65135782,86.709,86.647,26.37295019]
[1770568943087,8.65135782,86.708,86.647,26.37295019]
[1770568943287,8.65135782,86.707,86.647,26.37295019]
[1770568943489,8.65135782,86.706,86.647,26.37295019]
[1770568943693,20.8841003,86.728,86.651,26.37295019]
[1770568943893,8.66237032,86.727,86.651,26.37295019]
[1770568944092,16.88706541,86.726,86.651,26.37295019]
[1770568944293,8.66237032,86.725,86.651,26.37295019]
[1770568944493,10.3861,86.722,86.656,26.37295019]
[1770568944697,8.66237032,86.721,86.656,26.37295019]
[1770568944994,8.66237032,86.72,86.656,26.37295019]
[1770568945194,8.66237032,86.719,86.656,26.37295019]
[1770568945396,8.66237032,86.718,86.656,26.37295019]
[1770568945591,8.66237032,86.717,86.656,26.37295019]
[1770568945797,8.66237032,86.716,86.656,26.37295019]
[1770568945996,8.66237032,86.715,86.656,26.37295019]
[1770568946190,8.66237032,86.714,86.656,26.37295019]
[1770568946386,8.66237032,86.713,86.656,26.37295019]
[1770568946586,8.66237032,86.712,86.656,26.37295019]
[1770568946892,8.66237032,86.711,86.656,26.37295019]
[1770568947090,10.4987003,86.719,86.603,0.55721108]
[1770568947091,8.52391923,86.706,86.639,26.37295019]
[1770568947292,8.52381082,86.693,86.639,26.37295019]
[1770568947490,8.66237032,86.692,86.639,26.37295019]
[1770568947695,8.66237032,86.691,86.639,26.37295019]
[1770568947895,8.66237032,86.69,86.639,26.37295019]
[1770568948201,8.66237032,86.689,86.639,26.37295019]
[1770568948497,8.66237032,86.688,86.639,26.37295019]
[1770568948698,10.3907,86.683,86.639,26.37295019]
[1770568948899,8.66237032,86.682,86.639,26.37295019]
[1770568949097,8.66237032,86.681,86.639,26.37295019]
[1770568949297,8.66237032,86.68,86.639,26.37295019]
[1770568949495,8.66237032,86.679,86.619,26.37295019]
[1770568949693,8.66237032,86.678,86.619,26.37295019]
[1770568949997,8.66237032,86.677,86.619,26.37295019]
[1770568950198,8.66237032,86.676,86.619,26.37295019]
[1770568950398,8.66237032,86.675,86.619,26.37295019]
[1770568950599,8.66237032,86.674,86.619,26.37295019]
[1770568950800,8.66237032,86.673,86.619,26.37295019]
[1770568950997,8.66237032,86.672,86.619,26.37295019]
[1770568951195,8.66237032,86.671,86.619,26.37295019]
[1770568951389,8.66237032,86.67,86.619,26.37295019]
[1770568951593,8.66237032,86.669,86.621,26.37295019]
[1770568951898,8.68769216,86.668,86.621,26.37295019]
[1770568952099,10.4987003,86.688,86.621,26.37295019]
[1770568952299,8.68800629,86.687,86.621,26.37295019]
[1770568952602,10.3908,86.683,86.621,26.37295019]
[1770568952793,8.68800629,86.682,86.621,26.37295019]
[1770568952993,8.68800629,86.681,86.621,26.37295019]
[1770568953188,8.68800629,86.68,86.621,26.37295019]
[1770568953398,8.68800629,86.679,86.621,26.37295019]
[1770568953600,8.68800629,86.678,86.621,26.37295019]
[1770568953801,8.68800629,86.677,86.621,26.37295019]
[1770568954001,8.68800629,86.676,86.621,26.37295019]
[1770568954199,8.68800629,86.675,86.621,26.37295019]
[1770568954398,8.68800629,86.674,86.621,26.37295019]
[1770568954604,9.56179128,86.691,86.621,26.37295019]
[1770568954895,8.68918492,86.69,86.621,26.37295019]
[1770568955098,8.68918492,86.689,86.621,26.37295019]
[1770568955292,8.68918492,86.688,86.621,26.37295019]
[1770568955498,9.56179128,86.691,86.621,26.37295019]
[1770568955499,8.68918492,86.687,86.621,26.37295019]
[1770568955703,8.68918492,86.686,86.622,10.398]
[1770568955901,8.68918492,86.685,86.623,26.37295019]
[1770568956201,8.68918492,86.684,86.623,26.37295019]
[1770568956404,8.68918492,86.683,86.623,26.37295019]
[1770568956596,8.68918492,86.682,86.623,26.37295019]
[1770568956793,8.68918492,86.681,86.626,26.37295019]
[1770568957003,9.56179128,86.691,86.626,26.37295019]
[1770568957205,8.68978032,86.69,86.626,26.37295019]
[1770568957401,8.68978032,86.689,86.626,26.37295019]
[1770568957595,8.68978032,86.688,86.626,26.37295019]
[1770568957904,8.68978032,86.687,86.626,26.37295019]
[1770568958106,8.68978032,86.686,86.626,26.37295019]
[1770568958400,8.68978032,86.685,86.626,26.37295019]
[1770568958600,8.68978032,86.684,86.626,26.37295019]
[1770568958797,8.68978032,86.683,86.626,26.37295019]
[1770568958995,8.68978032,86.682,86.626,26.37295019]
[1770568959197,9.56179128,86.691,86.626,26.37295019]
[1770568959397,8.69185379,86.69,86.626,26.37295019]
[1770568959601,9.56179128,86.691,86.626,26.37295019]
[1770568959602,8.69185379,86.689,86.626,26.37295019]
[1770568959801,8.69185379,86.688,86.626,26.37295019]
[1770568960001,8.69185379,86.687,86.626,26.37295019]
[1770568960198,8.69185379,86.686,86.64,26.37295019]
[1770568960397,20.82148369,86.721,86.64,26.37295019]
[1770568960398,18.88621758,86.706,86.64,26.37295019]
[1770568960609,18.99563839,86.705,86.64,26.37295019]
[1770568963807,18.41464991,86.7,86.64,26.37295019]
[1770568964812,10.3893,86.696,86.64,26.37295019]
[1770568965011,19.47544983,86.695,86.604,26.94194324]
[1770568965205,10.48666301,86.691,86.604,26.94194324]
[1770568965406,19.47636664,86.69,86.604,26.94194324]
[1770568965809,10.3923,86.671,86.607,26.94194324]
[1770568967213,29.94345268,86.664,86.607,26.94194324]
[1770568967919,19.65076981,86.663,86.607,26.94194324]
[1770568968912,29.69352013,86.662,86.607,26.94194324]
[1770568969717,19.39870361,86.655,86.542,34.66]
[1770568969917,8.43869253,86.638,86.531,26.94194324]
[1770568970217,8.43869253,86.601,86.531,26.94194324]
[1770568970713,8.82105138,86.598,86.506,26.94194324]
[1770568970913,8.82105138,86.598,86.51,26.94194324]
[1770568971309,8.82114972,86.616,86.535,10.4085]
[1770568971513,8.82114972,86.616,86.496,2.010387]
[1770568971514,8.82114972,86.616,86.536,26.94194324]
[1770568971714,8.94210779,86.614,86.536,26.94194324]
[1770568972315,8.79860577,86.613,86.536,26.94194324]
[1770568972517,6.06486937,86.611,86.536,26.94194324]
[1770568973017,69.5787922,86.787,86.536,26.94194324]
[1770568973018,6.06486937,86.604,86.536,26.94194324]
[1770568973322,6.05885441,86.602,86.536,26.94194324]
[1770568973720,6.17709926,86.596,86.497,26.94194324]
[1770568974017,6.17709926,86.594,86.497,26.94194324]
[1770568974221,7.51418568,86.58,86.501,26.94194324]
[1770568974419,20.82148369,86.652,86.501,26.94194324]
[1770568974420,7.63198753,86.578,86.501,26.94194324]
[1770568974614,7.63198753,86.576,86.501,26.94194324]
[1770568975315,7.62874895,86.548,86.484,26.94194324]
[1770568975617,7.74441877,86.573,86.486,26.94194324]
[1770568975815,7.74441877,86.573,86.488,26.94194324]
[1770568976123,10.4041,86.572,86.489,26.94194324]
[1770568976514,7.70799124,86.593,86.489,26.94194324]
[1770568976717,10.4025,86.585,86.508,26.94194324]
[1770568977116,10.4025,86.585,86.487,92.1]
[1770568977117,7.70799124,86.593,86.509,10.4115]
[1770568977317,10.70453876,86.612,86.51,92.1]
[1770568977516,10.70453876,86.612,86.511,92.1]
[1770568977717,10.70453876,86.612,86.521,10.4101]
[1770568978318,10.8652135,86.607,86.521,10.4101]
[1770568978814,10.8652135,86.607,86.511,92.1]
[1770568979020,10.4009,86.599,86.512,26.94194324]
[1770568979328,10.98009915,86.598,86.512,26.94194324]
[1770568979621,10.98009915,86.598,86.514,26.94194324]
[1770568979923,10.4014,86.595,86.514,26.94194324]
[1770568980124,11.09692237,86.594,86.516,26.94194324]
[1770568980528,10.4016,86.593,86.516,26.94194324]
[1770568980918,11.45128709,86.593,86.516,26.94194324]
[1770568981119,10.4029,86.582,86.518,26.94194324]
[1770568981314,10.48666301,86.637,86.518,26.94194324]
[1770568981315,11.44837887,86.581,86.518,26.94194324]
[1770568981524,11.44837887,86.581,86.467,26.94194324]
[1770568981723,11.44837887,86.581,86.469,26.94194324]
[1770568981926,28.06333502,86.666,86.426,230.88]
[1770568981927,11.5621004,86.613,86.496,26.94194324]
[1770568982121,11.5621004,86.613,86.498,26.94194324]
[1770568982320,11.86963659,86.579,86.5,26.94194324]
[1770568982527,11.86963659,86.579,86.502,26.94194324]
[1770568983123,11.86963659,86.579,86.504,26.94194324]
[1770568983319,11.98039308,86.577,86.506,26.94194324]
[1770568985128,13.15184307,86.574,86.507,151.7]
[1770568985431,13.15184307,86.574,86.475,26.94194324]
[1770568985824,13.15184307,86.574,86.477,26.94194324]
[1770568986025,13.15184307,86.574,86.478,105.2]
[1770568986228,13.15184307,86.574,86.479,26.94194324]
[1770568986531,10.4054,86.561,86.479,26.94194324]
[1770568986732,10.4054,86.561,86.481,26.94194324]
[1770568986922,10.4054,86.561,86.483,26.94194324]
[1770568987123,13.15184307,86.574,86.482,92.14]
[1770568987124,13.8126915,86.573,86.487,26.94194324]
[1770568987318,13.8126915,86.573,86.489,26.94194324]
[1770568988520,13.8126915,86.573,86.491,26.94194324]
[1770568988727,13.38302465,86.557,86.491,26.94194324]
[1770568989023,13.38302465,86.557,86.492,151.78]
[1770568989222,13.38302465,86.557,86.493,92.16]
[1770568990130,10.4073,86.545,86.493,92.16]
[1770568990333,23.38801117,86.545,86.493,92.16]
[1770568992129,13.34220719,86.544,86.491,26.94194324]
[1770568992327,13.34220719,86.54,86.475,26.94194324]
[1770568992632,13.34220719,86.54,86.487,26.94194324]
[1770568993126,13.44327606,86.557,86.487,26.94194324]
[1770568993425,14.04364936,86.641,86.446,2.01153163]
[1770568993426,13.44194764,86.574,86.492,26.94194324]
[1770568993631,13.54163071,86.606,86.494,26.94194324]
[1770568994023,10.4025,86.585,86.518,26.94194324]
[1770568994324,13.54163071,86.606,86.519,105.34]
[1770568994636,13.91689404,86.602,86.532,26.94194324]
[1770568995330,10.4012,86.596,86.534,29.65263041]
[1770568995721,13.91689404,86.602,86.536,29.65263041]
[1770568995929,14.10224069,86.618,86.539,29.65263041]
[1770568996531,13.1481418,86.604,86.54,181.45263041]
[1770568996833,13.1481418,86.604,86.541,151.76]
[1770568997035,13.1481418,86.602,86.542,152.34]
[1770568997222,13.1481418,86.602,86.54,29.65263041]
[1770568997428,13.1481418,86.602,86.499,29.65263041]
[1770568997626,23.64171674,86.573,86.501,29.65263041]
[1770568997831,13.23771674,86.612,86.503,29.65263041]
[1770568998129,13.23771674,86.61,86.503,29.65263041]
[1770568998434,13.734868,86.585,86.505,29.65263041]
[1770568998825,13.734868,86.585,86.507,29.65263041]
[1770569000532,10.4026,86.584,86.507,29.65263041]
[1770569000723,14.05197193,86.583,86.507,29.65263041]
[1770569001124,14.05197193,86.583,86.493,10.4135]
[1770569001125,10.405,86.565,86.509,29.65263041]
[1770569001332,14.05024855,86.564,86.509,29.65263041]
[1770569001733,14.13826776,86.559,86.502,152.58]
[1770569001929,14.13826776,86.559,86.497,29.65263041]
[1770569002239,14.03813542,86.543,86.481,29.65263041]
[1770569002436,14.03813542,86.593,86.481,29.65263041]
[1770569002638,14.12501605,86.591,86.481,29.65263041]
[1770569002838,14.12501605,86.589,86.481,29.65263041]
[1770569003134,14.12501605,86.589,86.376,11.53]
[1770569003135,14.12319288,86.564,86.483,29.65263041]
[1770569003333,14.12319288,86.586,86.483,29.65263041]
[1770569003837,10.4042,86.571,86.503,29.65263041]
[1770569004239,10.4042,86.571,86.505,29.65263041]
[1770569006230,26.11882216,86.571,86.505,29.65263041]
[1770569006436,15.22519033,86.561,86.505,29.65263041]
[1770569006751,15.22519033,86.561,86.507,29.65263041]
[1770569007036,15.30804848,86.596,86.507,29.65263041]
[1770569007238,15.30804848,86.594,86.507,29.65263041]
[1770569007444,15.30744035,86.568,86.508,153.58]
[1770569007635,15.39011847,86.566,86.509,153.6]
[1770569007938,15.39011847,86.584,86.51,29.65263041]
[1770569008132,15.39011847,86.582,86.51,29.65263041]
[1770569008332,15.2774332,86.58,86.51,29.65263041]
[1770569008529,15.35850028,86.578,86.51,29.65263041]
[1770569008732,15.35850028,86.576,86.51,29.65263041]
[1770569009742,15.35850028,86.576,86.509,153.6]
[1770569009743,15.43792698,86.598,86.512,29.65263041]
[1770569009946,15.43792698,86.596,86.512,29.65263041]
[1770569010130,15.43792698,86.596,86.465,20.8339]
[1770569010131,15.43792698,86.594,86.514,29.65263041]
[1770569010335,15.73153647,86.582,86.519,29.65263041]
[1770569010533,15.81068051,86.58,86.503,29.65263041]
[1770569010840,15.81068051,86.578,86.503,29.65263041]
[1770569011138,15.81068051,86.576,86.503,29.65263041]
[1770569011340,10.407,86.548,86.503,29.65263041]
[1770569012840,16.04700108,86.546,86.453,29.65263041]
[1770569013041,16.04700108,86.546,86.331,162.2916]
[1770569013042,16.04700108,86.544,86.401,29.65263041]
[1770569013342,10.4102,86.521,86.431,29.65263041]
[1770569013539,8.79848728,86.52,86.431,29.65263041]
[1770569013735,10.44564394,86.549,86.431,29.65263041]
[1770569013940,10.44564394,86.547,86.465,29.65263041]
[1770569014246,444.27058417,86.567,86.465,29.65263041]
[1770569014247,8.79932292,86.546,86.465,29.65263041]
[1770569014449,8.79932292,86.545,86.466,29.65263041]
[1770569014747,15.68477353,86.579,86.466,29.65263041]
[1770569014938,15.68477353,86.577,86.466,29.65263041]
[1770569015135,15.68477353,86.575,86.466,29.65263041]
[1770569015340,15.68477353,86.575,86.424,11.53]
[1770569015341,15.6839201,86.573,86.472,29.65263041]
[1770569015540,10.44564394,86.584,86.472,29.65263041]
[1770569015541,24.57055157,86.572,86.472,29.65263041]
[1770569015851,8.81273669,86.571,86.487,29.65263041]
[1770569016043,8.81273669,86.57,86.487,29.65263041]
[1770569016239,8.81273669,86.569,86.492,29.65263041]
[1770569016439,10.4022,86.587,86.492,29.65263041]
[1770569016643,18.58697115,86.59,86.492,29.65263041]
[1770569016644,8.81728434,86.586,86.492,29.65263041]
[1770569016949,8.81728434,86.585,86.492,29.65263041]
[1770569017152,18.66013705,86.608,86.513,29.65263041]
[1770569017341,29.06278515,86.605,86.515,29.65263041]
[1770569017543,8.82036832,86.604,86.519,10.4104]
[1770569017738,8.82036832,86.603,86.521,29.65263041]
[1770569017945,8.82036832,86.602,86.523,29.65263041]
[1770569018246,8.82036832,86.602,86.487,34.66]
[1770569018247,8.82036832,86.601,86.532,29.65263041]
[1770569018448,8.82036832,86.6,86.534,29.65263041]
[1770569018643,18.66258515,86.605,86.534,29.65263041]
[1770569018843,8.81977693,86.604,86.534,29.65263041]
[1770569019049,8.81977693,86.603,86.534,29.65263041]
[1770569019251,8.81977693,86.602,86.534,29.65263041]
[1770569019445,8.81977693,86.601,86.534,29.65263041]
[1770569019644,8.81977693,86.6,86.534,29.65263041]
[1770569019849,17.91993216,86.602,86.534,29.65263041]
[1770569020049,8.81760192,86.601,86.534,29.65263041]
[1770569020251,8.81760192,86.6,86.534,29.65263041]
[1770569020550,8.81760192,86.599,86.535,154.4]
[1770569020741,26.17420502,86.598,86.535,154.4]
[1770569020948,8.81760192,86.597,86.535,154.4]
[1770569021144,8.81760192,86.596,86.535,154.4]
[1770569021350,8.81760192,86.595,86.536,29.65263041]
[1770569021555,17.35718456,86.619,86.536,29.65263041]
[1770569021855,8.81805262,86.618,86.536,29.65263041]
[1770569022046,8.81805262,86.617,86.541,29.65263041]
[1770569022241,10.3994,86.611,86.541,29.65263041]
[1770569022442,8.81507816,86.61,86.541,29.65263041]
[1770569022648,20.09083385,86.608,86.542,92.18]
[1770569022847,20.09083385,86.606,86.542,92.18]
[1770569023048,8.81507816,86.605,86.542,92.18]
[1770569023248,8.81507816,86.604,86.543,29.65263041]
[1770569023449,8.81507816,86.603,86.543,29.65263041]
[1770569023655,8.81507816,86.602,86.543,29.65263041]
[1770569023857,10.4001,86.605,86.543,29.65263041]
[1770569024151,10.4001,86.605,86.544,120.62]
[1770569024352,10.4001,86.605,86.545,29.65263041]
[1770569024753,20.09083385,86.606,86.545,29.65263041]
[1770569026955,20.09083385,86.606,86.547,31.73212775]
[1770569027751,20.09083385,86.606,86.549,31.73212775]
[1770569028061,18.57134296,86.624,86.549,31.73212775]
[1770569028664,10.3981,86.622,86.552,31.73212775]
[1770569029060,18.57134296,86.624,86.552,31.73212775]
[1770569029259,10.3992,86.612,86.552,31.73212775]
[1770569029460,30.28352653,86.612,86.553,130.28]